[Event "GER-ch Youth-ODJM 2022 A"]
[Site "Willingen"]
[Date "2022.06.11"]
[Round "9.22"]
[White "Bartelt, Max Peter"]
[Black "Schulz, Jannis"]
[Result "1/2-1/2"]
[ECO "D02"]
[WhiteElo "1959"]
[BlackElo "1810"]
[Annotator "TA"]
[PlyCount "149"]
[EventDate "2022.06.05"]
[EventType "swiss"]
[EventRounds "9"]
[EventCountry "GER"]
[SourceTitle "playchess.com"]
[Source "ChessBase"]
[SourceQuality "1"]
[TimeControl "40/4500+30:900+30"]

{[%evp 19,149,22,27,28,29,33,80,57,128,123,138,66,49,64,53,62,73,74,70,66,68,69,60,66,124,20,38,40,46,35,33,-6,-5,-4,0,0,8,16,16,0,5,0,0,0,0,-83,-98,-142,-140,-287,-77,-73,-21,-103,-22,-17,0,0,0,-18,0,-27,-30,-73,5,5,5,-40,-43,-40,-21,-23,-23,-23,-23,-23,-23,-23,-23,-35,0,0,0,0,-6,-168,-118,-122,-115,-125,-123,-114,-114,-114,-12,-114,0,0,0,-26,0,-12,-12,-12,-10,-8,0,0,0,0,32,32,103,0,0,-12838,0,0,0,0,0,0,0,0,0,0,0,0,0,0,0,0]} 1. d4 {[%emt 0:10:43]} d5 {[%emt 0:00:00]} 2. Nf3 {[%emt 0:00:04]} Nf6 {[%emt 0:00:00]} 3. g3 {[%emt 0:00:04]} e6 {[%emt 0:00:00]} 4. Bg2 {[%emt 0:00:04]} c5 {[%emt 0:00:00]} 5. O-O {[%emt 0:00:08]} Nc6 {[%emt 0:00:00]} 6. c4 {[%emt 0:00:04]} dxc4 {[%emt 0:00:00]} 7. Qa4 {[%emt 0:00:05]} Bd7 {[%emt 0:00:00]} 8. Qxc4 {[%emt 0:00:07]} cxd4 {[%emt 0:01:46]} 9. Nxd4 {[%emt 0:00:05]} Rc8 {[%emt 0:00:16]} 10. Nc3 {[%emt 0:02:05]} Be7 {[%emt 0:03:26]} 11. Rd1 {[%emt 0:00:28] E04: Open Catalan: 5 Nf3.} Qb6 {[%emt 0:06:30]} 12. Nb3 {[%emt 0:12:22] [#]} a6 $146 {[%emt 0:11:43]} (12... O-O $14) ({Predecessor:} 12... Ne5 13. Qd4 Qxd4 14. Rxd4 Bc6 15. e4 Rd8 16. Rxd8+ Bxd8 17. Be3 a6 18. Rd1 Nc4 {½-½ (49) Andriyashenko,V (2093)-Matveev,A (2081) Konakovo 2012}) 13. Be3 $16 {[%emt 0:00:46] White is better.} Qb4 {[%emt 0:01:18]} (13... Qd8 $14) 14. Qxb4 {[%emt 0:03:33] 0x0.002a998abda5dp-1022s more active pieces.} Bxb4 {[%emt 0:01:36]} 15. Bg5 {[%emt 0:01:30]} (15. Na4 $16) 15... Bxc3 $14 {[%emt 0:18:33]} 16. bxc3 {[%emt 0:00:05]} Nd8 {[%emt 0:00:14]} 17. Na5 {[%emt 0:02:35]} b6 {[%emt 0:03:11]} 18. Nb7 {[%emt 0:00:18]} Nxb7 {[%emt 0:02:02]} 19. Bxb7 {[%emt 0:00:07][%cal Bg2b7,Bb7a6,Ba6c4][%mdl 32]} Rxc3 {[%emt 0:00:08]} 20. Bxa6 {[%emt 0:04:53]} Ra3 {[%emt 0:14:43]} 21. Bc4 {[%emt 0:02:08] This bishop pair is nice.} Ke7 {[%emt 0:02:25]} (21... Rc3 $14 22. Rac1 Rxc1 23. Bxc1 (23. Rxc1 O-O $14) 23... O-O) 22. e4 {[%emt 0:04:18]} (22. Bd2 $1 $16 {[%cal Rd2b4] Strongly threatening Bb4+.} Ra4 23. Bb3) 22... h6 {[%emt 0:00:36]} 23. Bc1 {[%emt 0:17:21]} Ra7 {[%emt 0:05:53]} 24. e5 {[%emt 0:00:51]} Ne4 {[%emt 0:00:36]} 25. f3 {[%emt 0:03:47]} Rc8 {[%emt 0:02:39]} 26. Rd4 {[%emt 0:01:12]} Nc5 {[%emt 0:01:21]} ({Don't do} 26... Ra4 27. Rxd7+ Kxd7 28. Bb5+ Kd8 29. fxe4 (29. Bxa4 Nc3 $16) 29... Rxe4 30. Bb2 $18) 27. Rb1 {[%emt 0:01:43] Prevents b5.} Na4 {[%emt 0:05:20]} 28. Ba3+ {[%emt 0:00:46]} Ke8 {[%emt 0:00:05]} 29. Bb4 {[%emt 0:11:20]} b5 {[%emt 0:02:23] [#]} 30. Rxd7 $1 {[%emt 0:02:56]} Kxd7 {[%emt 0:01:24]} 31. Bxb5+ {[%emt 0:00:04]} Kc7 {[%emt 0:00:08]} 32. Bd6+ {[%emt 0:00:20]} (32. f4 $11) 32... Kd8 $17 {[%emt 0:00:22]} 33. Rb3 {[%emt 0:02:47]} Nc3 {[%emt 0:01:00]} 34. Bd3 {[%emt 0:00:38]} (34. a3 $17) 34... Nd5 $2 {[%emt 0:00:21]} ({Not} 34... Nxa2 35. Rb2 $17) (34... Rxa2 $19 {and Black stays clearly on top. White must now prevent ...Ne2+.} 35. Ra3 Ne2+ 36. Kf2 Rxa3 37. Bxa3 Nxg3 $1 {[%mdl 512]} 38. Kxg3 Rc3) 35. a3 {[%emt 0:00:49]} g6 {[%emt 0:00:41]} (35... h5 $17) 36. Kg2 {[%emt 0:00:28]} (36. f4 $11 {remains equal.}) 36... h5 {[%emt 0:00:12]} ({Black should try} 36... Ne3+ $1 $17 37. Kf2 Nc4 38. Bxc4 Rxc4) 37. Kh3 {[%emt 0:00:52]} Rc3 {[%emt 0:00:42]} 38. Rb8+ {[%emt 0:00:10]} Rc8 {[%emt 0:00:04] Threatens to win with ...Rxb8.} 39. Rb3 {[%emt 0:00:58]} Ne7 {[%emt 0:01:27]} 40. g4 {[%emt 0:01:04]} hxg4+ {[%emt 0:00:19]} 41. fxg4 {[%emt 0:00:00]} Ke8 {[%emt 0:00:00]} (41... g5 $17) 42. Kh4 $11 {[%emt 0:00:00]} Kf8 {[%emt 0:00:00]} 43. Kg5 {[%emt 0:00:00]} (43. a4 $5) 43... Kg7 {[%emt 0:00:00]} 44. h4 {[%emt 0:00:00]} Ng8 {[%emt 0:00:00]} 45. Rb6 {[%emt 0:00:00]} Rd8 {[%emt 0:03:13]} 46. Bb5 {[%emt 0:04:23]} Ne7 {[%emt 0:01:00]} 47. a4 $1 {[%emt 0:01:34]} Nd5 {[%emt 0:01:07]} 48. Rc6 {[%emt 0:00:28]} Rh8 $1 {[%emt 0:02:52]} 49. Bc5 {[%emt 0:02:59]} Rc7 {[%emt 0:01:07]} 50. Rxc7 {[%emt 0:00:05]} Nxc7 {[%emt 0:00:03][%mdl 4096] Endgame KRN-KB} 51. Be7 {[%emt 0:02:09]} Ra8 {[%emt 0:02:14]} 52. Bf6+ $2 {[%emt 0:00:06]} (52. h5 $11) 52... Kg8 $1 $19 {[%emt 0:00:18]} 53. Bc6 {[%emt 0:00:43]} Ra6 {[%emt 0:00:19]} 54. Bd7 {[%emt 0:00:40]} Nd5 $1 {[%emt 0:01:51]} 55. h5 {[%emt 0:00:48] [#]} gxh5 {[%emt 0:00:38]} 56. gxh5 {[%emt 0:00:09] [#]} Ra7 {[%emt 0:01:19]} (56... Nc3 $1 $17 57. Kh6 Nxa4) 57. Bb5 {[%emt 0:00:18]} (57. Bc6 $1 $11) 57... Ne3 {[%emt 0:02:31]} (57... Nc3 $17 58. Bd3 Rxa4) 58. Bd8 {[%emt 0:01:20] And now Bb6 would win.} Ra8 {[%emt 0:01:48]} 59. Be7 {[%emt 0:01:19]} Rc8 {[%emt 0:01:12]} (59... Nd5 $5 {[%cal Rd5e7]} 60. Bd6 Nc3 $15) 60. h6 {[%emt 0:03:36]} Rc1 {[%emt 0:00:44]} 61. a5 {[%emt 0:01:32]} Rg1+ {[%emt 0:00:38]} 62. Kh5 {[%emt 0:00:08]} Nf5 {[%emt 0:01:07]} 63. Bc5 {[%emt 0:00:17]} Rc1 {[%emt 0:01:30]} 64. Bb6 {[%emt 0:00:38]} Ra1 {[%emt 0:01:11]} 65. a6 {[%emt 0:01:42][%mdl 1024] aiming for Bc5. White has compensation.} Ne7 {[%emt 0:00:07]} 66. Bd8 {[%emt 0:00:20]} (66. Bc5 $16 Nc8 67. Bd4) 66... Ng6 {[%emt 0:00:48]} 67. Bd3 $2 {[%emt 0:00:54][%mdl 8192]} (67. Kg5 $11) 67... Rd1 $2 {[%emt 0:01:28]} (67... Nf4+ $19 68. Kg5 Nxd3) 68. a7 {[%emt 0:00:31] The position is equal.} Ra1 {[%emt 0:00:03]} 69. Bxg6 {[%emt 0:00:47]} fxg6+ {[%emt 0:00:06]} 70. Kxg6 {[%emt 0:00:05] Threatening mate with h7+.} Rxa7 $11 {[%emt 0:00:08] KR-KB} 71. Bf6 {[%emt 0:00:36]} Rh7 {[%emt 0:00:58]} 72. Bg5 {[%emt 0:00:39]} Rf7 {[%emt 0:00:13]} 73. Be3 {[%emt 0:00:21]} Rf3 {[%emt 0:00:49]} 74. Bc5 {[%emt 0:02:22]} Rf7 {[%emt 0:00:51]} 75. Bd6 {[%emt 0:01:15] Weighted Error Value: White=0.28 (precise) /Black=0.26 (precise)} 1/2-1/2